bitfinex-derivatives/quotes_BTCF0:USTF0_20250902
["timestamp","ask_amount","ask_price","bid_price","bid_amount"]
[1756828064835,0.006,111140.0,111130.0,2.00230728]
[1756828066537,0.006,111140.0,111130.0,1.63483]
[1756828066742,0.006,111140.0,111130.0,2.00230728]
[1756828067243,0.006,111140.0,111130.0,2.00214728]
[1756828068645,0.81893728,111140.0,111130.0,0.12239]
[1756828068836,1.06893728,111140.0,111130.0,0.97379]
[1756828069746,0.70813728,111140.0,111130.0,0.97379]
[1756828070147,0.34066,111140.0,111130.0,0.97379]
[1756828070340,0.30474,111140.0,111130.0,1.34126728]
[1756828070543,0.006,111140.0,111130.0,1.34126728]
[1756828070739,0.006,111140.0,111130.0,1.97206728]
[1756828072148,0.006,111140.0,111130.0,1.70206728]
[1756828072449,0.006,111140.0,111130.0,1.33459]
[1756828072648,0.006,111140.0,111130.0,1.70206728]
[1756828072947,0.006,111140.0,111130.0,1.70198728]
[1756828073248,0.006,111140.0,111130.0,0.48319]
[1756828073446,0.09066,111140.0,111130.0,0.97371]
[1756828073641,0.34066,111140.0,111130.0,0.97371]
[1756828073843,0.70146,111140.0,111130.0,0.93846]
[1756828074241,0.70146,111140.0,111130.0,0.9736]
[1756828078451,0.70146,111140.0,111130.0,0.08718]
[1756828078653,0.70146,111140.0,111130.0,0.69688]
[1756828079148,0.45146,111140.0,111130.0,0.08718]
[1756828079457,0.45146,111140.0,111130.0,0.06378]
[1756828079458,1.52766898,111140.0,111130.0,0.06378]
[1756828079656,1.27766898,111140.0,111130.0,0.041]
[1756828080253,1.52766898,111140.0,111130.0,0.041]
[1756828080447,1.52766898,111140.0,111130.0,0.001]
[1756828080649,1.49174898,111140.0,111110.0,0.03514]
[1756828080856,0.44546,111120.0,111110.0,0.09258]
[1756828081555,0.44546,111120.0,111110.0,0.05744]
[1756828081755,0.44546,111120.0,111110.0,0.09258]
[1756828081955,0.44546,111120.0,111110.0,0.08258]
[1756828082157,0.44546,111120.0,111110.0,0.08358]
[1756828082356,0.3608,111120.0,111110.0,0.08358]
[1756828082556,0.3608,111120.0,111110.0,0.08258]
[1756828082758,0.44846,111120.0,111110.0,0.08358]
[1756828083150,0.05174,111120.0,111110.0,0.08358]
[1756828083647,0.003,111120.0,111110.0,0.08358]
[1756828083846,0.003,111120.0,111110.0,1.15058898]
[1756828084252,0.003,111120.0,111110.0,1.18058898]
[1756828084556,0.003,111120.0,111110.0,1.15058898]
[1756828084855,0.003,111120.0,111110.0,1.48058898]
[1756828085055,0.003,111120.0,111110.0,1.20058898]
[1756828086256,0.003,111120.0,111110.0,0.75438]
[1756828086560,0.003,111120.0,111110.0,1.60554]
[1756828087564,0.003,111120.0,111110.0,2.06174898]
[1756828088054,0.003,111120.0,111110.0,1.60554]
[1756828088248,0.08888,111120.0,111110.0,0.99478]
[1756828088654,0.08888,111120.0,111110.0,0.14358]
[1756828088859,0.08888,111120.0,111110.0,0.99474]
[1756828089159,0.08888,111120.0,111110.0,0.14358]
[1756828089360,0.08888,111120.0,111110.0,0.99474]
[1756828090462,0.08888,111120.0,111110.0,0.14358]
[1756828090764,0.08888,111120.0,111110.0,0.99474]
[1756828091863,0.09767913,111120.0,111110.0,0.99474]
[1756828092566,0.09767913,111120.0,111110.0,0.14358]
[1756828092754,0.09767913,111120.0,111110.0,0.99474]
[1756828092950,0.70847913,111120.0,111110.0,0.061]
[1756828093154,1.52468811,111120.0,111110.0,0.001]
[1756828094062,1.06847913,111120.0,111110.0,0.04907]
[1756828094261,1.52468811,111120.0,111110.0,0.02516]
[1756828094763,1.52468811,111120.0,111110.0,0.001]
[1756828096361,1.52468811,111120.0,111060.0,0.0854]
[1756828096362,0.04753,111070.0,111060.0,0.0854]
[1756828096562,0.44547,111070.0,111060.0,0.4254]
[1756828097066,0.44547,111070.0,111060.0,0.0854]
[1756828097961,0.45429857,111070.0,111060.0,0.0854]
[1756828098161,0.45529857,111070.0,111060.0,0.0874]
[1756828098862,0.91150755,111070.0,111060.0,0.0874]
[1756828099366,0.45529857,111070.0,111060.0,0.0874]
[1756828100770,0.52750524,111070.0,111060.0,0.0874]
[1756828102068,0.51867667,111070.0,111060.0,0.0874]
[1756828102573,1.22858565,111070.0,111060.0,0.002]
[1756828103069,0.86858565,111070.0,111060.0,0.0874]
[1756828103269,0.86858565,111070.0,111060.0,0.05007]
[1756828103570,1.17858565,111070.0,111060.0,0.05007]
[1756828103765,0.72237667,111070.0,111060.0,0.02616]
[1756828103967,1.17858565,111070.0,111060.0,0.05007]
[1756828104163,0.89748778,111070.0,111060.0,0.0874]
[1756828104362,0.89748778,111070.0,111060.0,0.05007]
[1756828104363,1.21748778,111070.0,111060.0,0.05007]
[1756828104562,0.87748778,111070.0,111060.0,0.05007]
[1756828106168,0.87748778,111070.0,111060.0,0.002]
[1756828106575,0.87748778,111070.0,111060.0,0.02616]
[1756828106773,1.25748778,111070.0,111060.0,0.002]
[1756828106968,0.87748778,111070.0,111060.0,0.05007]
[1756828107168,1.21748778,111070.0,111060.0,0.05007]
[1756828107473,1.22129672,111070.0,111060.0,0.05007]
[1756828107871,0.4212788,111070.0,111060.0,0.0874]
[1756828108175,1.24129672,111070.0,111060.0,0.0874]
[1756828108368,1.24129672,111070.0,111060.0,0.05007]
[1756828109073,1.19129672,111070.0,111060.0,0.002]
[1756828109874,1.19129672,111070.0,111060.0,0.0874]
[1756828115471,0.7312788,111070.0,111060.0,0.0874]
[1756828115776,0.72237667,111070.0,111060.0,0.3374]
[1756828115976,1.18239459,111070.0,111060.0,0.3374]
[1756828116280,1.18239459,111070.0,111060.0,0.002]
[1756828117074,1.19150981,111070.0,111060.0,0.002]
[1756828117579,1.46753881,111070.0,111060.0,0.05007]
[1756828117775,1.46753881,111070.0,111060.0,0.002]
[1756828118380,1.46753881,111070.0,111060.0,0.02616]
[1756828119484,1.46753881,111070.0,111060.0,0.002]
[1756828121184,1.46753881,111070.0,111060.0,0.02619]
[1756828121386,1.46753881,111070.0,111060.0,0.0489]
[1756828122183,1.46753881,111070.0,111060.0,0.02619]
[1756828122485,1.46753881,111070.0,111060.0,0.002]
[1756828122883,1.46753881,111070.0,111060.0,0.02619]
[1756828123186,1.46753881,111070.0,111060.0,0.0489]
[1756828123388,1.46753881,111070.0,111060.0,0.002]
[1756828125089,1.46653881,111070.0,111040.0,0.44937346]
[1756828125289,1.58589189,111070.0,111060.0,0.001]
[1756828125484,1.94669189,111070.0,111060.0,0.001]
[1756828125682,1.94269189,111070.0,111040.0,0.44937346]
[1756828125889,1.58689189,111070.0,111060.0,0.001]
[1756828126083,1.94769189,111070.0,111060.0,0.001]
[1756828126289,2.68373881,111070.0,111060.0,0.001]
[1756828127289,1.94469189,111070.0,111040.0,0.41592346]
[1756828127490,0.3608,111060.0,111050.0,0.08135]
[1756828127791,1.09684692,111060.0,111050.0,0.09501]
[1756828128091,1.43684692,111060.0,111050.0,0.09501]
[1756828128487,0.3608,111060.0,111050.0,0.09501]
[1756828128687,1.47684692,111060.0,111050.0,0.09501]
[1756828128894,1.09684692,111060.0,111050.0,0.09501]
[1756828129193,1.46684692,111060.0,111050.0,0.09501]
[1756828129581,1.46984692,111060.0,111050.0,0.09601]
[1756828130193,0.3638,111060.0,111050.0,0.09601]
[1756828130386,1.41984692,111060.0,111050.0,0.09601]
[1756828130893,0.3638,111060.0,111050.0,0.09601]
[1756828131089,1.43984692,111060.0,111050.0,0.09601]
[1756828132096,1.09984692,111060.0,111050.0,0.09601]
[1756828133494,1.09984692,111060.0,111050.0,0.0479]
[1756828133701,1.09984692,111060.0,111050.0,0.001]
[1756828133997,1.09984692,111060.0,111050.0,0.02519]
[1756828134197,1.09984692,111060.0,111050.0,0.0479]
[1756828134801,1.43984692,111060.0,111050.0,0.08235]
[1756828134989,1.43984692,111060.0,111050.0,0.0479]
[1756828140215,0.7038,111060.0,111050.0,0.08235]
[1756828140414,0.7038,111060.0,111050.0,0.09601]
[1756828140606,1.43984692,111060.0,111050.0,0.09601]
[1756828141114,1.43984692,111060.0,111050.0,0.0479]
[1756828141315,0.7038,111060.0,111050.0,0.08235]
[1756828141816,1.43984692,111060.0,111050.0,0.08235]
[1756828142009,0.7038,111060.0,111050.0,0.09601]
[1756828142314,1.43984692,111060.0,111050.0,0.09601]
[1756828142516,1.07182346,111060.0,111050.0,0.46403346]
[1756828143105,1.43984692,111060.0,111050.0,0.09601]
[1756828143307,1.43984692,111060.0,111050.0,0.06156]
[1756828143514,1.43984692,111060.0,111050.0,0.09601]
[1756828143713,1.43984692,111060.0,111050.0,0.0479]
[1756828143915,1.43984692,111060.0,111050.0,0.08235]
[1756828144417,1.46984692,111060.0,111050.0,0.08235]
[1756828145914,1.46984692,111060.0,111050.0,0.001]
[1756828147620,1.83787038,111060.0,111050.0,0.001]
[1756828147817,2.08787038,111060.0,111050.0,0.001]
[1756828151222,2.93879038,111060.0,111050.0,0.001]
[1756828151520,2.08787038,111060.0,111050.0,0.001]
[1756828151722,2.93879038,111060.0,111050.0,0.001]
[1756828153620,2.93879038,111060.0,111020.0,0.08422]
[1756828153816,1.09684692,111030.0,111020.0,0.02276]
[1756828154018,2.33768273,111030.0,111010.0,0.08422]
[1756828154321,1.09684692,111020.0,111010.0,0.08422]
[1756828154622,1.45684692,111020.0,111010.0,0.08422]
[1756828155923,1.45284692,111020.0,111010.0,0.02276]
[1756828156617,1.45584692,111020.0,111010.0,0.02376]
[1756828156816,1.45584692,111020.0,111010.0,0.001]
[1756828157217,2.32672692,111020.0,111010.0,0.08522]
[1756828157416,2.32672692,111020.0,111010.0,0.04829]
[1756828158120,2.32672692,111020.0,111010.0,0.001]
[1756828158520,2.09387038,111020.0,111010.0,0.001]
[1756828158725,2.94471038,111020.0,111010.0,0.001]
[1756828159724,2.09387038,111020.0,111010.0,0.001]
[1756828159921,2.94471038,111020.0,111010.0,0.001]
[1756828160627,2.09387038,111020.0,111010.0,0.001]
[1756828160829,2.94471038,111020.0,111010.0,0.001]
[1756828162025,2.95370693,111020.0,111010.0,0.001]
[1756828165329,2.95366693,111020.0,111010.0,0.001]
[1756828165734,2.95366693,111020.0,110980.0,0.08422]
[1756828166031,0.72882346,110990.0,110980.0,0.08872]
[1756828166223,1.10882346,110990.0,110980.0,0.08872]
[1756828166422,1.47684692,110990.0,110980.0,0.08872]
[1756828166626,2.33640414,110990.0,110980.0,0.02726]
[1756828166926,2.7044276,110990.0,110980.0,0.0045]
[1756828167331,3.0738505,110990.0,110980.0,0.0045]
[1756828167531,1.488718,110990.0,110980.0,0.0055]
[1756828167718,2.339478,110990.0,110980.0,0.0055]
[1756828168422,1.488718,110990.0,110980.0,0.0055]
[1756828168624,2.339478,110990.0,110980.0,0.0055]
[1756828168822,1.55986692,110990.0,110980.0,0.0055]
[1756828169026,2.40958692,110990.0,110980.0,0.0045]
[1756828169322,2.41258692,110990.0,110980.0,0.0045]
[1756828169519,1.56186692,110990.0,110980.0,0.0045]
[1756828169722,2.41262692,110990.0,110980.0,0.0045]
[1756828171730,1.56186692,110990.0,110980.0,0.0045]
[1756828171929,2.41258692,110990.0,110980.0,0.0045]
[1756828173120,1.56186692,110990.0,110980.0,0.0045]
[1756828173328,2.41262692,110990.0,110980.0,0.0045]
[1756828173523,1.56186692,110990.0,110980.0,0.0045]
[1756828173724,2.41262692,110990.0,110980.0,0.0045]
[1756828175926,2.41262692,110990.0,110960.0,0.08422]
[1756828176233,1.09029788,110970.0,110960.0,0.08422]
[1756828176432,1.46077198,110970.0,110960.0,0.08422]
[1756828177030,1.5819941,110970.0,110960.0,0.08422]
[1756828177218,0.3704741,110970.0,110960.0,0.70291788]
[1756828177424,0.0224741,110970.0,110960.0,0.70291788]
[1756828178140,0.0224741,110970.0,110960.0,0.33422]
[1756828181536,0.75197198,110970.0,110960.0,0.33422]
[1756828181742,0.39117198,110970.0,110960.0,0.33422]
[1756828182437,0.75197198,110970.0,110960.0,0.33422]
[1756828183238,0.75197198,110970.0,110960.0,0.08422]
[1756828184138,1.12197198,110970.0,110960.0,0.08422]
[1756828184640,1.49066986,110970.0,110960.0,0.08422]
[1756828184829,1.49066986,110970.0,110940.0,0.08168]
[1756828185136,0.72949788,110950.0,110940.0,0.08168]
[1756828185326,1.0894582,110950.0,110940.0,0.08618]
[1756828186739,1.0914582,110950.0,110940.0,0.08618]
[1756828187034,0.39276032,110950.0,110940.0,0.08618]
[1756828187239,1.0814582,110950.0,110940.0,0.08618]
[1756828188134,1.9320182,110950.0,110940.0,0.08618]
[1756828188343,1.9320182,110950.0,110940.0,0.05143]
[1756828188842,1.9320182,110950.0,110940.0,0.0045]
[1756828189736,0.71376032,110950.0,110940.0,0.08618]
[1756828189934,1.9330182,110950.0,110940.0,0.08618]
[1756828191243,1.56436032,110950.0,110940.0,0.08618]
[1756828191441,1.9330582,110950.0,110940.0,0.08618]
[1756828192436,1.56436032,110950.0,110940.0,0.08618]
[1756828192745,1.9330582,110950.0,110940.0,0.08618]
[1756828193646,1.9330582,110950.0,110940.0,0.05143]
[1756828193840,1.0824582,110950.0,110940.0,0.05143]
[1756828194039,1.9330582,110950.0,110940.0,0.08618]
[1756828194347,0.71376032,110950.0,110940.0,0.08618]
[1756828194533,1.9330582,110950.0,110940.0,0.08618]
[1756828195743,0.35296032,110950.0,110940.0,0.35443342]
[1756828196045,0.08296032,110950.0,110940.0,1.78262918]
[1756828196239,0.08296032,110950.0,110940.0,2.63322918]
[1756828197240,0.08296032,110950.0,110940.0,2.62872918]
[1756828197641,0.08296032,110950.0,110940.0,2.61872918]
[1756828198350,0.08296032,110950.0,110940.0,2.70886258]
[1756828198351,0.02296032,110950.0,110940.0,2.70886258]
[1756828198949,0.02296032,110950.0,110940.0,1.97146682]
[1756828199149,0.02296032,110950.0,110940.0,2.70886258]
[1756828199353,0.02296032,110950.0,110940.0,2.45886258]
[1756828199649,0.02296032,110950.0,110940.0,1.72146682]
[1756828199849,0.02296032,110950.0,110940.0,2.45886258]
[1756828200248,0.11308562,110950.0,110940.0,2.70886258]
[1756828200452,0.003,110950.0,110940.0,2.70886258]
[1756828200946,0.0526141,110970.0,110960.0,0.08168]
[1756828201147,0.0526141,110970.0,110960.0,1.53197788]
[1756828201348,0.0526141,110970.0,110960.0,2.63249788]
[1756828201845,0.1342541,110970.0,110960.0,2.02249788]
[1756828202351,0.1392541,110970.0,110960.0,2.02249788]
[1756828202551,0.1047541,110970.0,110960.0,2.02249788]
[1756828203153,0.50795198,110970.0,110960.0,1.29296]
[1756828203452,1.11875198,110970.0,110960.0,0.044763]
[1756828203637,0.1720171,110960.0,110950.0,0.04693]
[1756828203953,0.1859453,110950.0,110940.0,0.91602342]
[1756828204247,0.1859453,110950.0,110940.0,0.36518342]
[1756828204443,0.1859453,110950.0,110940.0,1.21618342]
[1756828204845,0.1839453,110950.0,110940.0,1.21618342]
[1756828205447,0.1859453,110950.0,110940.0,1.21818342]
[1756828205648,0.1859453,110950.0,110940.0,1.23779342]
[1756828205953,0.1859453,110950.0,110940.0,0.38679342]
[1756828206149,0.1859453,110950.0,110940.0,1.23795342]
[1756828207054,0.1859453,110950.0,110940.0,0.93795342]
[1756828208048,0.1859453,110950.0,110940.0,0.08679342]
[1756828208251,0.1859453,110950.0,110940.0,0.93739342]
[1756828208755,0.1859453,110950.0,110940.0,0.08679342]
[1756828208959,0.5359453,110950.0,110940.0,0.93739342]
[1756828209455,1.51544318,110950.0,110940.0,0.02025342]
[1756828210552,0.7967453,110950.0,110940.0,0.04322342]
[1756828210758,1.50560909,110950.0,110940.0,0.02497]
[1756828210949,1.50560909,110950.0,110940.0,0.002]
[1756828211447,1.50560909,110950.0,110930.0,0.0045]
[1756828211448,1.87430697,110950.0,110930.0,0.0045]
[1756828211648,0.81027788,110940.0,110930.0,0.0045]
[1756828211947,1.18027788,110940.0,110930.0,0.0045]
[1756828212151,2.03171788,110940.0,110930.0,0.0045]
[1756828212653,0.81158,110940.0,110930.0,0.0045]
[1756828212954,1.18027788,110940.0,110930.0,0.0045]
[1756828213155,1.18027788,110940.0,110930.0,0.07236]
[1756828213358,0.81158,110940.0,110930.0,0.07236]
[1756828213550,0.81158,110940.0,110930.0,0.44105788]
[1756828213751,0.45158,110940.0,110930.0,0.44105788]
[1756828213956,0.45358,110940.0,110930.0,0.07236]
[1756828215056,0.09278,110940.0,110930.0,0.07236]
[1756828215359,0.45358,110940.0,110930.0,0.02747]
[1756828215656,0.82227788,110940.0,110930.0,0.0045]
[1756828216653,0.82227788,110940.0,110920.0,0.02161]
[1756828216956,0.08078,110930.0,110920.0,0.28786]
[1756828217357,0.08078,110930.0,110920.0,0.65655788]
[1756828217759,0.08970978,110930.0,110920.0,0.28786]
[1756828217961,0.45840766,110930.0,110920.0,0.28786]
[1756828218158,0.46040766,110930.0,110920.0,0.28786]
[1756828218754,0.82120766,110930.0,110920.0,0.22]
[1756828218956,0.48251808,110930.0,110920.0,0.22]
[1756828219149,1.16662596,110930.0,110910.0,0.02611]
[1756828219356,0.44947788,110920.0,110910.0,0.923]
[1756828219953,0.08078,110920.0,110910.0,1.2838]
[1756828220153,0.08078,110920.0,110910.0,0.43316]
[1756828220356,0.08078,110920.0,110910.0,0.923]
[1756828220756,0.08278,110920.0,110910.0,0.923]
[1756828221155,0.08278,110920.0,110910.0,1.173]
[1756828221357,0.45147788,110920.0,110910.0,0.07236]
[1756828221755,0.08278,110920.0,110910.0,0.07236]
[1756828222356,0.08278,110920.0,110910.0,0.44105788]
[1756828222757,0.44358,110920.0,110910.0,0.44105788]
[1756828223363,1.12227788,110920.0,110910.0,0.0045]
[1756828224153,2.22295788,110920.0,110910.0,0.0045]
[1756828224354,0.09454,110900.0,110890.0,0.06786]
[1756828224550,0.83403788,110900.0,110890.0,0.06786]
[1756828224954,0.10454,110900.0,110890.0,0.06786]
[1756828225566,0.09078,110900.0,110890.0,0.42866]
[1756828226058,0.05619,110900.0,110890.0,0.42866]
[1756828226259,0.01,110900.0,110890.0,1.15473141]
[1756828226463,0.01969662,110910.0,110900.0,0.02161]
[1756828226664,0.02969662,110910.0,110900.0,1.73881318]
[1756828226865,0.02969662,110910.0,110900.0,2.09881318]
[1756828227066,0.02969662,110910.0,110900.0,0.88681318]
[1756828227263,0.11047662,110910.0,110900.0,0.42866]
[1756828227565,0.94674111,110910.0,110900.0,0.3608]
[1756828227956,0.94674111,110910.0,110900.0,0.42866]
[1756828228157,0.90295111,110910.0,110890.0,0.37871823]
[1756828228470,0.09454,110900.0,110890.0,0.08577823]
[1756828229166,0.02251,110900.0,110890.0,0.44657823]
[1756828229368,0.09454,110900.0,110890.0,0.44657823]
[1756828229762,0.09454,110900.0,110890.0,1.29969823]
[1756828229967,0.08078,110900.0,110890.0,1.29969823]
[1756828230166,0.09454,110900.0,110890.0,1.29969823]
[1756828230368,0.09454,110900.0,110890.0,0.44657823]
[1756828230566,0.09854,110900.0,110890.0,0.44657823]
[1756828231069,0.09854,110900.0,110890.0,0.42866]
[1756828231473,0.08478,110900.0,110890.0,0.42866]
[1756828231867,0.004,110900.0,110890.0,0.88992449]
[1756828232068,0.004,110900.0,110890.0,1.25992449]
[1756828232262,0.004,110900.0,110890.0,0.88992449]
[1756828232470,0.08478,110900.0,110890.0,0.88992449]
[1756828232668,0.08478,110900.0,110890.0,0.42866]
[1756828233470,0.09854,110900.0,110890.0,0.06786]
[1756828234061,0.03459,110890.0,110880.0,1.28174]
[1756828234264,0.05235,110900.0,110880.0,1.61013]
[1756828234467,0.49585449,110890.0,110880.0,0.77866]
[1756828234767,0.54204449,110890.0,110880.0,0.41786]
[1756828234967,0.08078,110890.0,110880.0,0.41786]
[1756828235167,0.08378,110890.0,110880.0,0.77866]
[1756828235370,0.08378,110890.0,110880.0,0.41786]
[1756828235868,0.003,110890.0,110880.0,1.48992449]
[1756828236572,0.003,110890.0,110880.0,0.98241]
[1756828236773,0.03759,110890.0,110880.0,1.83553]
[1756828236972,0.03759,110890.0,110880.0,1.58553]
[1756828237568,0.003,110890.0,110880.0,2.04679449]
[1756828238377,0.003,110890.0,110880.0,2.04667449]
[1756828238878,0.003,110890.0,110880.0,1.58541]
[1756828239078,0.003,110890.0,110880.0,2.04667449]
[1756828239279,0.003,110890.0,110880.0,1.58541]
[1756828239479,0.003,110890.0,110880.0,2.04667449]
[1756828239675,0.08634,110890.0,110880.0,0.7108]
[1756828239878,0.08634,110890.0,110880.0,1.63317]
[1756828241277,0.05049,110890.0,110880.0,1.63317]
[1756828241481,0.003,110890.0,110880.0,2.34443449]
[1756828241778,0.003,110890.0,110880.0,2.89587508]
[1756828241975,0.003,110890.0,110880.0,2.96711623]
[1756828242683,0.003,110890.0,110880.0,2.11411623]
[1756828242876,0.003,110890.0,110880.0,1.24143449]
[1756828243076,0.003,110890.0,110880.0,2.09527449]
[1756828243473,0.003,110890.0,110880.0,2.18545059]
[1756828243877,0.003,110890.0,110880.0,2.09527449]
[1756828244080,0.003,110890.0,110880.0,2.18545059]
[1756828244574,0.003,110890.0,110880.0,1.24143449]
[1756828244776,0.10611107,110890.0,110880.0,1.63393]
[1756828244972,0.07026107,110890.0,110880.0,1.63393]
[1756828245186,0.02326107,110890.0,110880.0,2.09519449]
[1756828247091,0.02326107,110890.0,110880.0,0.78017]
[1756828247295,0.02326107,110890.0,110880.0,1.24143449]
[1756828247891,0.10611107,110890.0,110880.0,1.63913]
[1756828248086,0.10611107,110890.0,110880.0,1.63901]
[1756828248087,0.35611107,110890.0,110880.0,1.63901]
[1756828248389,0.81737556,110890.0,110880.0,1.61573]
[1756828248990,0.35611107,110890.0,110880.0,1.61573]
[1756828249891,0.07026107,110890.0,110880.0,1.61573]
[1756828250087,0.05,110890.0,110880.0,1.61573]
[1756828250490,0.02681,110890.0,110880.0,1.61573]
[1756828250791,0.003,110890.0,110880.0,1.61573]
[1756828251192,0.03885,110890.0,110880.0,1.61573]
[1756828253093,0.003,110890.0,110880.0,1.61573]
[1756828254091,0.79711449,110890.0,110880.0,0.78094]
[1756828254288,0.79711449,110890.0,110880.0,1.57264]
[1756828254494,0.33585,110890.0,110880.0,1.29278]
[1756828254893,0.79711449,110890.0,110880.0,1.29278]
[1756828255192,0.33585,110890.0,110880.0,1.29278]
[1756828255993,0.3,110890.0,110880.0,1.29278]
[1756828256295,0.33585,110890.0,110880.0,1.29278]
[1756828256792,0.33685,110890.0,110880.0,1.29278]
[1756828258384,0.35654584,110890.0,110880.0,1.2923]
[1756828258589,0.35654584,110890.0,110880.0,0.40933]
[1756828258790,0.82676348,110890.0,110880.0,0.43094]
[1756828259291,0.58676348,110890.0,110880.0,0.43094]
[1756828259698,0.58676348,110890.0,110880.0,0.07014]
[1756828259995,1.53756348,110890.0,110870.0,0.03964108]
[1756828260192,0.54411449,110880.0,110870.0,0.08817108]
[1756828260382,0.09285,110880.0,110870.0,0.95049108]
[1756828260699,0.08285,110870.0,110860.0,0.3608]
[1756828260996,0.92411449,110870.0,110860.0,0.38528]
[1756828261186,0.08285,110870.0,110860.0,0.43094]
[1756828261386,0.55411449,110870.0,110860.0,0.43094]
[1756828261885,0.87711449,110870.0,110860.0,0.43094]
[1756828262286,0.08285,110850.0,110840.0,0.43094]
[1756828262493,0.89842449,110850.0,110840.0,0.43094]
[1756828262695,0.55842449,110850.0,110840.0,0.43094]
[1756828262893,0.94123619,110850.0,110840.0,0.07014]
[1756828263098,0.08285,110840.0,110820.0,0.38241]
[1756828263291,0.08285,110830.0,110820.0,0.43094]
[1756828263484,1.52381,110830.0,110820.0,0.43094]
[1756828264296,0.08285,110830.0,110820.0,0.43094]
[1756828264599,0.05,110830.0,110820.0,0.43094]
[1756828264795,0.003,110830.0,110820.0,0.89220449]
[1756828265094,0.003,110830.0,110820.0,1.49220449]
[1756828265284,0.003,110830.0,110820.0,0.68094]
[1756828265486,0.003,110830.0,110820.0,0.89220449]
[1756828265683,0.003,110830.0,110820.0,0.43094]
[1756828266192,0.57711449,110830.0,110820.0,0.43094]
[1756828266396,0.033,110830.0,110820.0,1.21220449]
[1756828266697,0.033,110830.0,110820.0,1.46220449]
[1756828267699,0.003,110830.0,110820.0,1.46220449]
[1756828267888,0.003,110830.0,110820.0,0.75094]
[1756828268090,0.003,110830.0,110820.0,0.43094]
[1756828268285,0.06367,110830.0,110820.0,1.30238]
[1756828268490,0.08686,110830.0,110820.0,1.30242]
[1756828268891,0.33686,110830.0,110820.0,0.94302]
[1756828270799,0.08386,110820.0,110810.0,1.30274]
[1756828272099,0.04755,110820.0,110810.0,1.30274]
[1756828272291,0.003,110830.0,110820.0,0.06871]
[1756828272292,0.08701,110830.0,110820.0,0.06871]
[1756828272789,0.06067,110820.0,110810.0,0.3608]
[1756828272996,0.08401,110810.0,110800.0,1.30674]
[1756828273196,0.44481,110820.0,110810.0,0.06871]
[1756828273401,0.81681,110820.0,110810.0,0.06871]
[1756828274307,0.08401,110810.0,110800.0,1.30858]
[1756828275200,0.0922249,110820.0,110810.0,0.06871]
[1756828275400,0.1022249,110820.0,110810.0,0.89077449]
[1756828275601,0.1022249,110820.0,110810.0,1.49927945]
[1756828276197,0.1022249,110820.0,110810.0,1.03801496]
[1756828276397,0.0902249,110820.0,110810.0,1.49927945]
[1756828277094,0.0922249,110820.0,110810.0,1.49927945]
[1756828278200,0.0922249,110820.0,110810.0,1.24927945]
[1756828278600,0.0922249,110820.0,110810.0,1.32237496]
[1756828278601,0.1762349,110820.0,110810.0,1.32237496]
[1756828278802,0.1762349,110820.0,110810.0,0.96141496]
[1756828278803,0.88749939,110820.0,110810.0,0.96141496]
[1756828279105,0.4262349,110820.0,110810.0,1.32221496]
[1756828281195,0.1762349,110820.0,110810.0,1.32221496]
[1756828281599,0.1399249,110820.0,110810.0,1.32221496]
[1756828282007,0.1762349,110820.0,110810.0,1.32221496]
[1756828282195,0.1399249,110820.0,110810.0,1.32221496]
[1756828282507,0.1399249,110820.0,110810.0,0.44801496]
[1756828282708,0.1762349,110820.0,110810.0,1.32161496]
[1756828282905,0.1762349,110820.0,110810.0,0.08721496]
[1756828283200,0.1762349,110820.0,110810.0,0.96193496]
[1756828283402,0.63749939,110820.0,110810.0,0.08721496]
[1756828283703,0.03631,110810.0,110800.0,0.38692]
[1756828283909,0.03631,110810.0,110800.0,1.3087]
[1756828284900,1.93933898,110810.0,110780.0,0.23098116]
[1756828285102,0.54527449,110790.0,110780.0,0.22187324]
[1756828285400,1.28607449,110790.0,110780.0,0.22187324]
[1756828286106,1.2951725,110790.0,110780.0,0.22187324]
[1756828286410,1.5451725,110790.0,110780.0,0.22187324]
[1756828286605,1.5471725,110790.0,110780.0,0.22187324]
[1756828286802,1.62081784,110790.0,110780.0,0.22187324]
[1756828287911,1.15955335,110790.0,110780.0,0.22187324]
[1756828288112,1.62081784,110790.0,110780.0,0.22187324]
[1756828288310,1.15045534,110790.0,110780.0,0.22187324]
[1756828288511,1.61171983,110790.0,110780.0,0.22187324]
[1756828289405,0.90045534,110790.0,110780.0,0.29509324]
[1756828289611,1.35962166,110790.0,110780.0,0.29509324]
[1756828290106,0.99882166,110790.0,110780.0,0.29509324]
[1756828290412,0.53965534,110790.0,110780.0,0.29509324]
[1756828291314,0.62990474,110790.0,110780.0,0.29509324]
[1756828291610,0.62990474,110790.0,110780.0,0.24539324]
[1756828291807,1.08907106,110790.0,110780.0,0.24539324]
[1756828292003,1.44987106,110790.0,110780.0,0.22187324]
[1756828292304,1.69987106,110790.0,110780.0,0.22187324]
[1756828293803,2.57243106,110790.0,110780.0,0.22187324]
[1756828294006,2.11302474,110790.0,110780.0,0.22187324]
[1756828294212,2.57219106,110790.0,110780.0,0.22187324]
[1756828295010,1.69987106,110790.0,110780.0,0.22187324]
[1756828295316,2.57207106,110790.0,110780.0,0.22187324]
[1756828296017,1.44987106,110790.0,110780.0,0.22187324]
[1756828296316,0.62990474,110790.0,110780.0,0.22187324]
[1756828296518,1.08907106,110790.0,110780.0,0.29509324]
[1756828296711,1.08907106,110790.0,110780.0,0.22187324]
[1756828296915,1.96271106,110790.0,110780.0,0.22187324]
[1756828297112,2.32351106,110790.0,110780.0,0.22187324]
[1756828297523,2.57351106,110790.0,110780.0,0.22187324]
[1756828297908,2.57351106,110790.0,110780.0,0.18437324]
[1756828298115,2.57351106,110790.0,110780.0,0.09799324]
[1756828298819,2.57351106,110790.0,110780.0,4e-08]
[1756828299112,2.57315106,110790.0,110780.0,4e-08]
[1756828299510,1.69987106,110790.0,110780.0,4e-08]
[1756828299710,1.44987106,110790.0,110780.0,4e-08]
[1756828299914,2.32383106,110790.0,110780.0,0.02330004]
[1756828300115,2.32379106,110790.0,110780.0,0.08194004]